fUSD/lending_fUSD_20250417
["ID","MTS","AMOUNT","RATE_DAILY","PERIOD"]
[358261150,1744877451787,-500.0,0.0049863,120]
[358261152,1744877451798,-500.0,0.0049863,120]
[358261154,1744877451809,-1704.96,0.0049863,120]
[358261156,1744877451819,-1117.16,0.0049863,120]
[358261158,1744877451828,-1306.39,0.0049863,120]
[358261160,1744877451837,-572.17,0.0049863,120]
[358261162,1744877451847,-583.72,0.0049863,120]
[358261164,1744877451856,-597.13,0.0049863,120]
[358261165,1744877451866,-500.0,0.0049863,120]
[358261169,1744877451891,-2039.5,0.0049863,120]
[358261171,1744877451901,-996.39,0.0049863,120]
[358261173,1744877451910,-637.71,0.0049863,120]
[358261175,1744877451920,-598.35,0.0049863,120]
[358261176,1744877451929,-575.34,0.0049863,120]
[358261178,1744877451938,-719.55,0.0049863,120]
[358261180,1744877451948,-573.78,0.0049863,30]
[358261182,1744877451957,-48653.07536806,0.00499674,120]
[358262397,1744877658019,200.0,0.00049215,120]
[358262399,1744878219049,152.8,0.0002,2]
[358262400,1744878308211,3712.200001,0.00018,2]
[358262401,1744878308243,393525.92507623,0.00018,2]
[358262402,1744878308271,15000.0,0.00018,2]
[358262403,1744878308302,400000.0,0.00018,2]
[358262404,1744878309107,-372.22639273,0.00018,2]
[358262405,1744878346486,-189.12639273,0.0001791,2]
[358262406,1744878362586,-80.71229227,0.0001791,2]
[358262407,1744878362609,-77.59770773,0.00017955,2]
[358262409,1744878370457,-172.40229227,0.00017955,2]
[358262410,1744878370482,-61.53770773,0.00018,2]
[358262411,1744878376398,-265.46207263,0.00018,2]
[358262412,1744878394008,-424.05500569,0.00017999,2]
[358262413,1744878394033,-49.55883857,0.00017999,2]
[358262414,1744878402951,-450.44116143,0.00017999,2]
[358262415,1744878402975,-421.7580822,0.00017999,2]
[358262416,1744878403000,-999127.80075637,0.00018,2]
[358262417,1744878406279,-237.64164746,0.00018,2]
[358262418,1744878419957,-218.04887665,0.00018,2]
[358262419,1744878423272,-246.872,0.00017999,2]
[358262420,1744878434152,-53.128,0.00017999,2]
[358262421,1744878434177,-300.0,0.00017999,2]
[358262422,1744878434201,-371.54458215,0.00017999,2]
[358262423,1744878443083,-87.45541785,0.00017999,2]
[358262424,1744878443113,-31081.1133669,0.00018,2]
[358262425,1744878446171,-186.72717665,0.00018,2]
[358262426,1744878447152,-396920.92754032,0.00018,2]
[358262427,1744878453140,-1320.56138889,0.00018,2]
[358262428,1744878454330,-250.0,0.00018,2]
[358262429,1744878481873,-188.711269,0.00018,2]
[358262430,1744878490101,-161.288731,0.000179,2]
[358262431,1744878523158,-179.49384319,0.000179,2]
[358262432,1744878523183,-38.55503346,0.00018,2]
[358262433,1744878526652,-231.83800788,0.00018,2]
[358262441,1744878557078,-300.0,0.00017999,2]
[358262442,1744878557100,-19390.14656751,0.00018,2]
[358262443,1744878563113,-1314.18566929,0.00018,2]
[358262444,1744878565102,-14608.99285091,0.00018,2]
[358262445,1744878565132,-361.6,0.00018,2]
[358262447,1744878595624,-263.65830367,0.00018596,2]
[358262448,1744878595648,-420.0,0.00019639,2]
[358262449,1744878595676,-250.0,0.00019701,2]
[358262450,1744878595700,-420.0,0.00019735,2]
[358262451,1744878595725,-250.0,0.000198,2]
[358262452,1744878595749,-1546.1257644,0.000199,2]
[358262453,1744878595952,-996850.21593193,0.0002,2]
[358262458,1744878631564,-300.0,0.00019999,2]
[358262459,1744878631583,-300.0,0.00019999,2]
[358262460,1744878631594,-61188.46143259,0.0002,2]
[358262470,1744878637761,-24162.71095545,0.0002,2]
[358262471,1744878637771,-218.04887665,0.0002,2]
[358262472,1744878637781,-250.0,0.00020671,2]
[358262473,1744878637791,-500.0,0.00021343,2]
[358262474,1744878637801,-420.0,0.00021777,2]
[358262475,1744878637811,-373.0,0.00021881,2]
[358262476,1744878637822,-250.0,0.00022,2]
[358262477,1744878637833,-637.68199318,0.00022089,2]
[358262478,1744878637857,-587.0,0.00023712,2]
[358262479,1744878637869,-283.73,0.0002498,2]
[358262480,1744878637880,-1546.12576434,0.00025011,2]
[358262481,1744878637890,-280.17335578,0.00025225,2]
[358262482,1744878637904,-500.0,0.00025225,2]
[358262483,1744878637914,-162.36483299,0.00025225,2]
[358262484,1744878637923,-580.35169404,0.00025225,2]
[358262485,1744878637933,-153.25164585,0.00025225,2]
[358262488,1744878637943,-250.0,0.00025428,2]
[358262489,1744878637952,-1399.51,0.00025428,2]
[358262491,1744878637962,-823.0,0.0002582,2]
[358262493,1744878637972,-12785.08,0.00026591,2]
[358262495,1744878637982,-1108.0,0.00028115,2]
[358262497,1744878637996,-1546.12576434,0.00030122,2]
[358262499,1744878638007,-21017.33,0.00030122,2]
[358262501,1744878638017,-81714.48465612,0.0003133,2]
[358262503,1744878638027,-151.93558661,0.00033588,20]
[358262505,1744878638037,-1546.12576434,0.00035233,2]
[358262507,1744878638046,-397.80101665,0.000356,7]
[358262509,1744878638056,-2299.99999703,0.0004,2]
[358262511,1744878638066,-1546.12576434,0.00040344,15]
[358262513,1744878638075,-1013.82485559,0.00045,2]
[358262515,1744878638085,-1546.12576434,0.00045456,15]
[358262517,1744878638096,-1000.0,0.00046369,2]
[358262518,1744878638106,-8440.6646371,0.00047935,4]
[358262520,1744878638115,-668.65185757,0.00048,120]
[358262522,1744878638125,-867.19918816,0.00049878,7]
[358262524,1744878638135,-2569.0,0.00049878,120]
[358262526,1744878638145,-86113.0330868,0.00049878,30]
[358262529,1744878638154,-1546.12576434,0.00050567,15]
[358262531,1744878638163,-500.0,0.00050758,2]
[358262532,1744878638173,-199.0,0.000518,120]
[358262534,1744878638182,-3572.3514,0.000519,2]
[358262535,1744878638191,-8440.6646371,0.0005199,4]
[358262536,1744878638201,-32284.40366795,0.00052,30]
[358262537,1744878638210,-8440.6646371,0.00052044,4]
[358262538,1744878638221,-2682.348314,0.00052054,120]
[358262539,1744878638232,-2682.348314,0.00052054,120]
[358262540,1744878638242,-1000.0,0.00052165,120]
[358262541,1744878638252,-500.0,0.00052327,7]
[358262542,1744878638262,-500.0,0.00052327,7]
[358262543,1744878638271,-500.0,0.00052327,7]
[358262544,1744878638281,-500.0,0.00052327,7]
[358262545,1744878638290,-500.0,0.00052327,7]
[358262546,1744878638300,-381.08735137,0.00052327,7]
[358262547,1744878638309,-500.0,0.00052327,7]
[358262548,1744878638318,-500.0,0.00052327,7]
[358262549,1744878638328,-500.0,0.00052327,7]
[358262550,1744878638337,-500.0,0.00052327,7]
[358262551,1744878638347,-500.0,0.00052327,7]
[358262552,1744878638356,-2682.348314,0.00052328,120]
[358262553,1744878638366,-2682.348314,0.00052328,120]
[358262554,1744878638376,-2682.348314,0.00052602,120]
[358262555,1744878638386,-2682.348314,0.00052602,120]
[358262556,1744878638395,-8440.6646371,0.00052866,4]
[358262557,1744878638406,-2682.348314,0.00052876,120]
[358262558,1744878638415,-2682.348314,0.00052876,120]
[358262559,1744878638425,-2682.348314,0.0005315,120]
[358262560,1744878638435,-2682.348314,0.0005315,120]
[358262561,1744878638445,-2682.348314,0.00053424,120]
[358262562,1744878638455,-2682.348314,0.00053424,120]
[358262563,1744878638464,-8440.6646371,0.00053688,4]
[358262564,1744878638474,-2682.348314,0.00053698,120]
[358262565,1744878638483,-2682.348314,0.00053698,120]
[358262566,1744878638492,-2682.348314,0.00053972,120]
[358262567,1744878638542,-2682.348314,0.00053972,120]
[358262568,1744878638551,-2682.348314,0.00054246,120]
[358262569,1744878638561,-2682.348314,0.00054246,120]
[358262570,1744878638570,-2682.348314,0.0005452,120]
[358262571,1744878638579,-16881.3292742,0.00054784,4]
[358262572,1744878638588,-500.0,0.00054794,120]
[358262573,1744878638597,-500.0,0.00054794,120]
[358262574,1744878638606,-2682.348314,0.00054794,120]
[358262575,1744878638615,-2682.348314,0.00054794,120]
[358262576,1744878638624,-2682.348314,0.00054794,120]
[358262577,1744878638634,-500.0,0.00054794,60]
[358262578,1744878638644,-500.0,0.00054794,60]
[358262579,1744878638654,-500.0,0.00054794,60]
[358262580,1744878638664,-500.0,0.00054794,60]
[358262581,1744878638674,-360.0,0.00054794,60]
[358262582,1744878638683,-500.0,0.00054794,60]
[358262583,1744878638692,-500.0,0.00054794,60]
[358262584,1744878638702,-492.0,0.00054794,60]
[358262585,1744878638712,-150.0,0.00054794,60]
[358262586,1744878638721,-150.0,0.00054794,60]
[358262587,1744878638731,-200.0,0.00054794,60]
[358262588,1744878638739,-150.0,0.00054794,60]
[358262589,1744878638749,-150.0,0.00054794,60]
[358262590,1744878638758,-150.0,0.00054794,60]
[358262591,1744878638767,-150.0,0.00054794,60]
[358262592,1744878638776,-200.576184,0.00054794,60]
[358262593,1744878638785,-622.16128434,0.00054794,120]
[358262594,1744878638794,-500.0,0.00054794,120]
[358262595,1744878638804,-150.0,0.00054794,60]
[358262596,1744878638813,-150.0,0.00054794,60]
[358262597,1744878638826,-200.0,0.00054794,60]
[358262598,1744878638835,-500.0,0.00054794,120]
[358262599,1744878638845,-500.0,0.00054794,30]
[358262600,1744878638854,-500.0,0.00054794,120]
[358262601,1744878638863,-500.0,0.00054794,120]
[358262602,1744878638872,-500.0,0.00054794,120]
[358262603,1744878638882,-500.0,0.00054794,120]
[358262604,1744878638891,-500.0,0.00054794,120]
[358262605,1744878638904,-500.0,0.00054794,120]
[358262606,1744878638913,-150.0,0.00054794,60]
[358262607,1744878638923,-150.0,0.00054794,60]
[358262608,1744878638932,-200.0,0.00054794,60]
[358262609,1744878638943,-150.0,0.00054794,60]
[358262610,1744878638952,-150.0,0.00054794,60]
[358262611,1744878638961,-150.0,0.00054794,60]
[358262612,1744878638971,-184.38685545,0.00054794,60]
[358262613,1744878638982,-500.0,0.00054794,120]
[358262614,1744878638991,-150.0,0.00054794,60]
[358262615,1744878639001,-178.70857312,0.00054794,60]
[358262616,1744878639011,-500.0,0.00054794,120]
[358262617,1744878639020,-2000.0,0.00054794,2]
[358262618,1744878639030,-500.0,0.00054794,120]
[358262619,1744878639039,-500.0,0.00054794,120]
[358262620,1744878639049,-401.41421723,0.00054794,120]
[358262621,1744878639059,-500.0,0.00054794,120]
[358262622,1744878639069,-500.0,0.00054794,120]
[358262623,1744878639078,-500.0,0.00054794,120]
[358262624,1744878639087,-2682.348314,0.00054931,120]
[358262625,1744878639096,-2682.348314,0.00055068,120]
[358262626,1744878639106,-2682.348314,0.00055068,120]
[358262627,1744878639116,-2682.348314,0.00055068,120]
[358262628,1744878639126,-2682.348314,0.00055205,120]
[358262629,1744878639136,-8440.6646371,0.00055332,4]
[358262630,1744878639146,-2682.348314,0.00055342,120]
[358262631,1744878639156,-2682.348314,0.00055342,120]
[358262632,1744878639165,-2682.348314,0.00055342,120]
[358262633,1744878639176,-2682.348314,0.00055616,120]
[358262634,1744878639185,-2682.348314,0.00055616,120]
[358262635,1744878639195,-1546.12576434,0.00055678,15]
[358262636,1744878639204,-2682.348314,0.0005589,120]
[358262637,1744878639214,-2682.348314,0.0005589,120]
[358262638,1744878639223,-8440.6646371,0.00056154,4]
[358262639,1744878639233,-2682.348314,0.00056164,120]
[358262640,1744878639242,-2682.348314,0.00056438,120]
[358262641,1744878639251,-2682.348314,0.00056712,120]
[358262642,1744878639261,-2000.0,0.00057135,8]
[358262643,1744878639270,-1000.0,0.00057961,120]
[358262644,1744878639280,-500.0,0.0005989,120]
[358262645,1744878639289,-500.0,0.0005989,120]
[358262646,1744878639299,-500.0,0.0005989,120]
[358262647,1744878639309,-467.4797095,0.0005989,120]
[358262648,1744878639318,-704.24617236,0.000599,15]
[358262649,1744878639327,-892.15559848,0.000599,31]
[358262650,1744878639337,-500.0,0.000599,120]
[358262651,1744878639346,-168813.292742,0.0005999,5]
[358262652,1744878639356,-481.70483687,0.0005999,7]
[358262653,1744878639365,-154.86416903,0.00059999,120]
[358262654,1744878639375,-118691.90846087,0.0006,120]
[358262655,1744878639389,-992914.09153913,0.0006,120]
[358262656,1744878639399,-150.0,0.0006,120]
[358262657,1744878639409,-1546.12576434,0.00060789,15]
[358262658,1744878639419,-101470.95,0.00061,120]
[358262659,1744878639429,-88973.87281147,0.000625,120]
[358262660,1744878639440,-437.03999781,0.000625,120]
[358262661,1744878639453,-92353.03917225,0.000625,120]
[358262662,1744878639465,-516.00125793,0.000625,120]
[358262663,1744878639943,-213.0,0.00049878,2]
[358262664,1744878639953,-500.0,0.00054794,120]
[358262665,1744878639963,-500.0,0.00054794,120]
[358262666,1744878639973,-1218.4164,0.000599,120]
[358262667,1744878639986,-6042.22483177,0.000625,120]
[358262692,1744878643909,-500.0,0.00054794,120]
[358262693,1744878643919,-200.0,0.000619,22]
[358262694,1744878643929,-811677.82192877,0.000625,120]
[358262695,1744878643939,-14216.34902785,0.00063558,2]
[358262696,1744878643951,-1000.0,0.00063757,120]
[358262697,1744878643961,-481.70483687,0.0006499,7]
[358262698,1744878643971,-1000000.0,0.00065,120]
[358262699,1744878643981,-636.28,0.00065753,120]
[358262700,1744878643993,-500.0,0.00065753,120]
[358262701,1744878644004,-500.0,0.00065753,30]
[358262702,1744878644014,-500.0,0.00065753,120]
[358262703,1744878644024,-500.0,0.00065753,120]
[358262704,1744878644034,-500.0,0.00065753,120]
[358262705,1744878644044,-611.63,0.00065753,120]
[358262706,1744878644053,-500.0,0.00065753,120]
[358262707,1744878644063,-500.0,0.00065753,120]
[358262708,1744878644073,-507.93,0.00065753,120]
[358262709,1744878644082,-500.0,0.00065753,120]
[358262710,1744878644092,-500.0,0.00065753,120]
[358262711,1744878644101,-500.0,0.00065753,120]
[358262712,1744878644111,-1546.12576434,0.000659,15]
[358262713,1744878644121,-277674.65755235,0.00066,60]
[358262714,1744878644132,-853.83011131,0.00066,60]
[358262715,1744878644142,-1000000.0,0.00066,120]
[358262716,1744878644152,-1000000.0,0.00068,120]
[358262717,1744878644162,-1000.0,0.00069554,120]
[358262718,1744878644172,-481.70483687,0.0006999,7]
[358262719,1744878644181,-1000000.0,0.0007,120]
[358262720,1744878644192,-1000000.0,0.00075,120]
[358262721,1744878644201,-500.0,0.00076712,120]
[358262722,1744878644211,-500.0,0.00076712,30]
[358262723,1744878644221,-500.0,0.00076712,120]
[358262724,1744878644231,-500.0,0.00076712,120]
[358262725,1744878644240,-500.0,0.00076712,120]
[358262726,1744878644250,-500.0,0.00076712,120]
[358262727,1744878644260,-500.0,0.00076712,120]
[358262728,1744878644269,-586.18242689,0.00076712,120]
[358262729,1744878644279,-500.0,0.00076712,120]
[358262730,1744878644289,-500.0,0.00079452,120]
[358262731,1744878644298,-1000000.0,0.0008,120]
[358262732,1744878644309,-500.0,0.00087671,120]
[358262733,1744878644319,-500.0,0.00087671,30]
[358262734,1744878644328,-500.0,0.00087671,120]
[358262735,1744878644338,-500.0,0.00087671,120]
[358262736,1744878644348,-500.0,0.00087671,120]
[358262737,1744878644358,-500.0,0.00087671,120]
[358262738,1744878644368,-500.0,0.00087671,120]
[358262739,1744878644377,-500.0,0.00087671,120]
[358262740,1744878644387,-2080.27980431,0.0009,120]
[358262741,1744878644397,-1000000.0,0.0009,120]
[358262742,1744878644407,-2003.35672492,0.00092,120]
[358262743,1744878644416,-4000.0,0.00092,120]
[358262744,1744878644426,-500.0,0.0009863,120]
[358262745,1744878644435,-500.0,0.0009863,30]
[358262746,1744878644445,-500.0,0.0009863,120]
[358262747,1744878644454,-500.0,0.0009863,120]
[358262748,1744878644464,-436.21588938,0.0009863,120]
[358262749,1744878644474,-403.39600171,0.0009863,120]
[358262750,1744878644483,-500.0,0.0009863,120]
[358262751,1744878644493,-337.84,0.0009863,120]
[358262752,1744878644503,-50000.0,0.001,100]
[358262753,1744878644513,-1000000.0,0.001,120]
[358262754,1744878644521,-361.01038494,0.00104109,120]
[358262755,1744878644531,-491.89415228,0.00109589,120]
[358262756,1744878644539,-368.92413436,0.00109589,30]
[358262757,1744878644549,-500.0,0.00109589,120]
[358262758,1744878644558,-500.0,0.00109589,120]
[358262759,1744878644568,-500.0,0.00109589,120]
[358262760,1744878644577,-160.02,0.00113412,120]
[358262761,1744878644587,-500.0,0.00120547,120]
[358262762,1744878644595,-500.0,0.00120547,120]
[358262763,1744878644605,-500.0,0.00120547,120]
[358262764,1744878644614,-160.02,0.00124754,120]
[358262765,1744878644624,-500.0,0.00131506,120]
[358262766,1744878644633,-500.0,0.00131506,120]
[358262767,1744878644643,-500.0,0.00131506,120]
[358262768,1744878644653,-160.02,0.00136095,120]
[358262769,1744878644663,-151.0,0.00139726,120]
[358262770,1744878644673,-151.0,0.00139726,120]
[358262771,1744878644683,-265.945449,0.00139726,120]
[358262772,1744878644692,-500.0,0.00142465,120]
[358262773,1744878644702,-548.27170081,0.00142465,120]
[358262774,1744878644712,-500.0,0.00142465,120]
[358262775,1744878644722,-500.0,0.00153424,120]
[358262776,1744878644732,-343.55617806,0.00153424,120]
[358262777,1744878644742,-500.0,0.00164383,120]
[358262778,1744878644752,-500.0,0.00175342,120]
[358262779,1744878644763,-2000.0,0.0018,120]
[358262780,1744878644773,-2000.0,0.0018,120]
[358262781,1744878644783,-1000.76,0.00186132,30]
[358262782,1744878644793,-500.0,0.00186301,120]
[358262783,1744878644803,-60139.7355394,0.00192722,60]
[358262784,1744878644813,-500.0,0.0019726,120]
[358262785,1744878644823,-50000.0,0.002,120]
[358262786,1744878644832,-500.0,0.00208219,120]
[358262787,1744878644842,-500.0,0.00219178,120]
[358262788,1744878644852,-282.23283146,0.00230136,120]
[358262789,1744878644862,-1500.0,0.0027,120]
[358262790,1744878644873,-359.69960649,0.00273972,120]
[358262791,1744878644883,-526.38,0.00273972,120]
[358262792,1744878644893,-500.0,0.00273972,120]
[358262793,1744878644905,-500.0,0.00273972,120]
[358262794,1744878644915,-500.0,0.00273972,120]
[358262795,1744878644925,-500.0,0.00273972,120]
[358262796,1744878644936,-500.0,0.00273972,120]
[358262797,1744878644947,-500.0,0.00273972,120]
[358262798,1744878644956,-500.0,0.00273972,120]
[358262799,1744878644967,-500.0,0.00273972,120]
[358262800,1744878644976,-500.0,0.00273972,120]
[358262801,1744878644988,-500.0,0.00273972,120]
[358262802,1744878644998,-175.46304846,0.00273972,120]
[358262803,1744878645009,-500.0,0.00273972,120]
[358262804,1744878645018,-194.96897677,0.00273972,120]
[358262805,1744878645028,-524.32692542,0.00273972,120]
[358262806,1744878645038,-500.0,0.00273972,120]
[358262807,1744878645048,-500.0,0.00273972,120]
[358262808,1744878645058,-584.22,0.00273972,120]
[358262809,1744878645068,-540.43,0.00273972,120]
[358262810,1744878645078,-500.0,0.00273972,120]
[358262811,1744878645087,-29806.68,0.00273972,7]
[358262812,1744878645098,-500.0,0.00273972,120]
[358262813,1744878645107,-500.0,0.00273972,120]
[358262814,1744878645117,-500.0,0.00273972,120]
[358262815,1744878645127,-285.42150976,0.00273972,120]
[358262816,1744878645137,-535.94,0.00273972,120]
[358262817,1744878645147,-269.2264042,0.00273972,120]
[358262818,1744878645157,-588.48,0.00273972,120]
[358262819,1744878645167,-500.0,0.00273972,120]
[358262820,1744878645176,-500.0,0.00273972,120]
[358262821,1744878645186,-500.0,0.00273972,120]
[358262822,1744878645196,-500.0,0.00273972,120]
[358262823,1744878645205,-500.0,0.00273972,120]
[358262824,1744878645215,-1202.53,0.00273972,120]
[358262825,1744878645224,-500.0,0.00273972,120]
[358262826,1744878645234,-500.0,0.00273972,120]
[358262827,1744878645244,-500.0,0.00273972,120]
[358262829,1744878645254,-500.0,0.00273972,120]
[358262830,1744878645264,-500.0,0.00273972,120]
[358262831,1744878645273,-500.0,0.00273972,120]
[358262832,1744878645283,-500.0,0.00273972,120]
[358262833,1744878645292,-494.27639329,0.00273972,120]
[358262834,1744878645301,-500.0,0.00273972,120]
[358262835,1744878645311,-500.0,0.00273972,120]
[358262836,1744878645320,-500.0,0.00273972,120]
[358262837,1744878645330,-500.0,0.00273972,120]
[358262838,1744878645340,-3524.25,0.00273972,120]
[358262839,1744878645349,-500.0,0.00273972,120]
[358262840,1744878645359,-500.0,0.00273972,120]
[358262841,1744878645368,-504.11838068,0.00273972,120]
[358262842,1744878645377,-500.0,0.00273972,120]
[358262844,1744878645386,-500.0,0.00273972,120]
[358262846,1744878645395,-500.0,0.00273972,120]
[358262847,1744878645405,-500.0,0.00273972,120]
[358262848,1744878645414,-534.84057992,0.00273972,120]
[358262849,1744878645425,-500.0,0.00273972,120]
[358262850,1744878645435,-512.80556907,0.00273972,120]
[358262851,1744878645445,-500.0,0.00273972,120]
[358262852,1744878645455,-500.0,0.00273972,120]
[358262853,1744878645465,-507.96859142,0.00273972,120]
[358262854,1744878645475,-562.14850365,0.00273972,120]
[358262855,1744878645485,-500.0,0.00273972,120]
[358262856,1744878645495,-500.0,0.00273972,120]
[358262857,1744878645504,-500.0,0.00273972,120]
[358262858,1744878645514,-500.0,0.00273972,120]
[358262859,1744878645523,-500.0,0.00273972,120]
[358262860,1744878645533,-500.0,0.00273972,120]
[358262861,1744878645543,-500.0,0.00273972,120]
[358262862,1744878645552,-500.0,0.00273972,120]
[358262863,1744878645562,-500.0,0.00273972,120]
[358262864,1744878645572,-500.0,0.00273972,120]
[358262865,1744878645581,-274.70577728,0.00273972,120]
[358262866,1744878645591,-595.83,0.00273972,120]
[358262867,1744878645601,-595.83,0.00273972,120]
[358262868,1744878645611,-595.83,0.00273972,120]
[358262869,1744878645621,-595.83,0.00273972,120]
[358262870,1744878645631,-595.83,0.00273972,120]
[358262871,1744878645776,-595.83,0.00273972,120]
[358262872,1744878645786,-595.83,0.00273972,120]
[358262873,1744878645796,-595.83,0.00273972,120]
[358262874,1744878645806,-595.83,0.00273972,120]
[358262875,1744878645815,-595.83,0.00273972,120]
[358262876,1744878645824,-595.83,0.00273972,120]
[358262877,1744878645834,-595.83,0.00273972,120]
[358262878,1744878645843,-595.83,0.00273972,120]
[358262879,1744878645853,-595.83,0.00273972,120]
[358262880,1744878645862,-595.83,0.00273972,120]
[358262881,1744878645872,-595.83,0.00273972,120]
[358262882,1744878645881,-595.83,0.00273972,120]
[358262883,1744878645890,-595.83,0.00273972,120]
[358262884,1744878645903,-595.83,0.00273972,120]
[358262885,1744878645913,-595.83,0.00273972,120]
[358262886,1744878645922,-595.83,0.00273972,120]
[358262887,1744878645933,-595.83,0.00284931,120]
[358262888,1744878645944,-12147.07817618,0.0029,120]
[358262889,1744878645953,-60139.7355394,0.00291928,90]
[358262891,1744878645962,-595.83,0.0029589,120]
[358262892,1744878645971,-305.39,0.0029863,120]
[358262893,1744878645982,-29806.68,0.0029863,7]
[358262894,1744878645991,-500.0,0.0029863,120]
[358262895,1744878646000,-500.0,0.0029863,120]
[358262896,1744878646010,-588.48,0.0029863,120]
[358262897,1744878646019,-500.0,0.0029863,120]
[358262898,1744878646028,-1202.53,0.0029863,120]
[358262899,1744878646037,-609.98,0.0029863,120]
[358262900,1744878646046,-500.0,0.0029863,120]
[358262902,1744878646056,-500.0,0.0029863,120]
[358262903,1744878646065,-500.0,0.0029863,120]
[358262904,1744878646075,-345.22849265,0.0029863,120]
[358262905,1744878646084,-500.0,0.0029863,120]
[358262906,1744878646093,-500.0,0.0029863,120]
[358262907,1744878646102,-500.0,0.0029863,120]
[358262909,1744878646111,-500.0,0.0029863,120]
[358262910,1744878646120,-500.0,0.0029863,120]
[358262912,1744878646129,-500.0,0.0029863,120]
[358262913,1744878646138,-3524.25,0.0029863,120]
[358262914,1744878646148,-500.0,0.0029863,120]
[358262915,1744878646157,-500.0,0.0029863,120]
[358262916,1744878646166,-500.0,0.0029863,120]
[358262917,1744878646176,-500.0,0.0029863,120]
[358262918,1744878646185,-500.0,0.0029863,120]
[358262919,1744878646194,-225.22,0.0029863,120]
[358262920,1744878646204,-500.0,0.0029863,120]
[358262921,1744878646214,-500.0,0.0029863,120]
[358262922,1744878646223,-165.59877616,0.0029863,120]
[358262923,1744878646232,-500.0,0.0029863,120]
[358262924,1744878646241,-500.0,0.0029863,120]
[358262925,1744878646250,-500.0,0.0029863,120]
[358262926,1744878646260,-10000.0,0.003,90]
[358262927,1744878646269,-595.91,0.00306849,120]
[358262928,1744878646278,-2000.0,0.0032,120]
[358262929,1744878646288,-29806.68,0.00323287,7]
[358262930,1744878646297,-500.0,0.00323287,120]
[358262931,1744878646306,-500.0,0.00323287,120]
[358262932,1744878646315,-588.48,0.00323287,120]
[358262933,1744878646324,-326.13,0.00323287,120]
[358262934,1744878646333,-1202.53,0.00323287,120]
[358262935,1744878646342,-500.0,0.00323287,120]
[358262936,1744878646351,-500.0,0.00323287,120]
[358262937,1744878646361,-500.0,0.00323287,120]
[358262938,1744878646370,-500.0,0.00323287,120]
[358262939,1744878646379,-500.0,0.00323287,120]
[358262940,1744878646388,-500.0,0.00323287,120]
[358262941,1744878646397,-500.0,0.00323287,120]
[358262942,1744878646407,-500.0,0.00323287,120]
[358262943,1744878646416,-500.0,0.00323287,120]
[358262944,1744878646426,-3524.25,0.00323287,120]
[358262945,1744878646435,-500.0,0.00323287,120]
[358262946,1744878646445,-592.70189984,0.00323287,120]
[358262947,1744878646454,-500.0,0.00323287,120]
[358262948,1744878646463,-500.0,0.00323287,120]
[358262949,1744878646473,-500.0,0.00323287,120]
[358262950,1744878646482,-500.0,0.00323287,120]
[358262951,1744878646492,-500.0,0.00323287,120]
[358262952,1744878646501,-500.0,0.00323287,120]
[358262953,1744878646515,-500.0,0.00323287,120]
[358262954,1744878646524,-500.0,0.00323287,120]
[358262955,1744878646534,-2000.0,0.0034,120]
[358262956,1744878646543,-29806.68,0.00347945,7]
[358262957,1744878646552,-495.40120001,0.00347945,120]